bitfinex/quotes_ETHUSD_20240604
["timestamp","ask_amount","ask_price","bid_price","bid_amount"]
[1717538047967,2.61944,3817.6,3816.9,5.03279]
[1717538048122,0.782,3817.5,3816.6,4.89769]
[1717538048329,5.09228,3817.4,3816.7,1.32126577]
[1717538048564,5.83847543,3817.4,3816.7,1.41106745]
[1717538049238,0.782,3817.3,3816.7,0.08980168]
[1717538049447,0.782,3817.3,3816.2,0.782]
[1717538049628,2.61981,3817.1,3816.3,4.03158274]
[1717538050870,2.61981,3817.1,3816.3,4.81358274]
[1717538051240,3.03461054,3817.1,3816.3,4.03158274]
[1717538053126,2.61981,3817.1,3816.3,4.03158274]
[1717538053328,2.61981,3817.1,3816.5,2.62017]
[1717538053565,2.61981,3817.1,3816.6,1.32126577]
[1717538053758,2.61981,3817.1,3816.6,1.41123675]
[1717538057576,2.61964,3817.4,3816.7,2.3538]
[1717538057785,2.61973,3817.2,3816.8,1.32126577]
[1717538058074,2.61973,3817.2,3816.9,0.08975999]
[1717538058252,2.61973,3817.2,3816.9,1.41102576]
[1717538060569,2.959903,3817.2,3816.9,0.08975999]
[1717538060844,2.61988,3817.0,3816.3,2.4521]
[1717538061038,2.61988,3817.0,3816.4,1.32126577]
[1717538061500,2.62002,3816.8,3816.0,2.4235]
[1717538061662,2.62002,3816.8,3816.1,1.32126577]
[1717538062681,2.62014,3816.6,3816.1,1.32126577]
[1717538063149,2.62014,3816.6,3816.2,0.08724348]
[1717538063471,2.62014,3816.6,3816.2,1.40850925]
[1717538065207,2.62014,3816.6,3816.2,1.32126577]
[1717538065593,2.62014,3816.6,3816.3,0.08443759]
[1717538065773,2.62014,3816.6,3816.2,1.32126577]
[1717538066161,2.62014,3816.6,3816.3,0.08443759]
[1717538066606,0.782,3816.5,3816.2,1.32126577]
[1717538066773,0.782,3816.5,3816.4,0.08438126]
[1717538067507,0.782,3816.5,3816.2,1.32126577]
[1717538067670,0.782,3816.5,3816.4,0.08438126]
[1717538067871,0.782,3816.5,3816.2,1.32126577]
[1717538068097,0.782,3816.5,3816.4,0.08438126]
[1717538068607,0.782,3816.5,3816.2,1.32126577]
[1717538068909,2.62027,3816.4,3816.3,0.08443759]
[1717538069089,2.62027,3816.4,3816.2,1.32126577]
[1717538069296,2.62027,3816.4,3816.3,0.08443759]
[1717538069497,2.62027,3816.4,3816.2,1.32126577]
[1717538069706,2.62027,3816.4,3816.3,0.08443759]
[1717538070006,2.62027,3816.4,3816.2,1.32126577]
[1717538070168,2.62027,3816.4,3816.3,0.08443759]
[1717538070514,2.62027,3816.4,3816.2,1.32126577]
[1717538070672,2.62027,3816.4,3816.3,0.08443759]
[1717538070870,3.40227,3816.4,3816.2,1.32126577]
[1717538071071,3.40227,3816.4,3816.3,0.08443759]
[1717538071322,3.40227,3816.4,3816.2,1.32126577]
[1717538071668,3.40227,3816.4,3816.3,0.08443759]
[1717538071874,3.40227,3816.4,3815.6,5.11176]
[1717538072215,3.40227,3816.4,3815.7,1.32126577]
[1717538072602,3.40227,3816.4,3815.7,1.40604139]
[1717538072984,2.62027,3816.4,3815.8,2.62066]
[1717538073187,2.62027,3816.4,3815.9,1.32126577]
[1717538073389,2.62027,3816.4,3815.9,1.4059287]
[1717538075878,3.40227,3816.4,3815.9,1.4059287]
[1717538077594,2.62027,3816.4,3815.9,1.4059287]
[1717538077921,3.40227,3816.4,3815.9,1.4059287]
[1717538080905,2.6204,3816.2,3815.9,1.4059287]
[1717538081298,2.62026,3816.5,3815.9,1.4059287]
[1717538081542,2.62026,3816.5,3815.9,2.02761664]
[1717538081900,3.40226,3816.5,3816.0,0.08477215]
[1717538082096,3.40226,3816.5,3816.1,1.32126577]
[1717538083294,5.71986,3816.5,3816.1,1.32126577]
[1717538083497,3.40226,3816.5,3816.1,1.32126577]
[1717538083953,2.62026,3816.5,3816.1,1.32126577]
[1717538085611,2.62026,3816.5,3816.1,3.81306577]
[1717538086188,2.62026,3816.5,3816.1,1.32126577]
[1717538086674,2.62026,3816.5,3816.2,0.08465948]
[1717538086807,2.62026,3816.5,3816.3,1.32126577]
[1717538088843,2.62026,3816.5,3815.8,5.11248]
[1717538089060,4.93326,3816.5,3816.4,0.08454682]
[1717538089348,5.504786,3816.5,3815.9,1.32126577]
[1717538089726,2.62034,3816.3,3815.9,1.32126577]
[1717538090136,2.62034,3816.3,3816.0,0.08477215]
[1717538090306,2.62034,3816.3,3816.0,1.40603792]
[1717538090511,2.62034,3816.3,3816.0,0.08477215]
[1717538090710,3.191874,3816.3,3815.6,2.3537]
[1717538090948,2.62034,3816.3,3815.7,1.40624112]
[1717538092331,2.62048,3816.1,3815.7,1.40624112]
[1717538094460,2.62048,3816.1,3815.7,0.08497535]
[1717538094757,2.62048,3816.1,3815.5,3.40282]
[1717538094983,2.62048,3816.1,3815.8,0.084919]
[1717538095127,2.62048,3816.1,3815.6,1.32126577]
[1717538095658,2.62048,3816.1,3815.7,0.08497535]
[1717538100453,2.62048,3816.1,3815.7,1.40624112]
[1717538100790,2.62031,3816.4,3815.8,1.32126577]
[1717538101215,2.62031,3816.4,3815.9,0.08486266]
[1717538101373,2.62031,3816.4,3815.9,1.40612843]
[1717538107961,2.62031,3816.4,3816.0,1.32126577]
[1717538108423,2.62031,3816.4,3816.1,0.08480255]
[1717538111659,2.62031,3816.4,3816.1,1.40606832]
[1717538112610,2.62011,3816.7,3816.1,1.40606832]
[1717538115716,2.62011,3816.7,3816.1,1.32126577]
[1717538117489,4.234621,3816.7,3816.1,1.32126577]
[1717538119026,2.62021,3816.5,3816.1,1.32126577]
[1717538122727,2.62021,3816.5,3816.2,0.08473835]
[1717538122910,2.62021,3816.5,3816.1,1.32126577]
[1717538123419,2.62021,3816.5,3816.2,0.08473835]
[1717538123823,2.62021,3816.5,3816.1,1.32126577]
[1717538124318,2.62021,3816.5,3816.2,0.08473835]
[1717538124823,2.62021,3816.5,3816.1,1.32126577]
[1717538125140,2.62021,3816.5,3816.2,0.08473835]
[1717538125283,2.62021,3816.5,3816.1,1.32126577]
[1717538125482,2.62021,3816.5,3816.2,0.08473835]
[1717538131744,2.62037,3816.3,3816.0,1.40612843]
[1717538131962,2.62037,3816.3,3816.1,0.08484462]
[1717538136295,2.62037,3816.3,3816.1,2.50274462]
[1717538137644,2.62037,3816.3,3816.1,0.08484462]
[1717538156601,3.40219,3816.6,3816.1,0.08484462]
[1717538156802,3.40219,3816.6,3816.0,1.40612843]
[1717538157000,3.40219,3816.6,3816.1,0.08421738]
[1717538157504,2.62019,3816.6,3816.1,0.08421738]
[1717538157711,2.62027,3816.4,3816.1,0.08421738]
[1717538160708,2.62027,3816.4,3815.8,2.62061]
[1717538161014,2.62027,3816.4,3815.8,3.94187577]
[1717538161191,2.62027,3816.4,3815.9,0.08433006]
[1717538161698,3.205597,3816.4,3815.9,0.08433006]
[1717538161896,2.62027,3816.4,3815.9,0.08433006]
[1717538192524,2.62027,3816.4,3815.9,0.08433006]
[1717538201494,4.90257,3816.4,3815.9,0.08433006]
[1717538209211,4.90257,3816.4,3815.7,3.16968089]
[1717538209416,4.90257,3816.4,3815.8,0.0843864]
[1717538210640,2.62042,3816.2,3815.8,0.0843864]
[1717538210846,2.62042,3816.2,3815.7,4.49094666]
[1717538211003,2.62042,3816.2,3815.8,0.0843864]
[1717538211429,2.62042,3816.2,3815.7,4.49094666]
[1717538211760,2.62042,3816.2,3815.8,0.0843864]
[1717538212123,2.62042,3816.2,3815.7,4.49094666]
[1717538212324,2.62042,3816.2,3815.9,0.08433006]
[1717538212519,2.62042,3816.2,3815.8,0.0843864]
[1717538213016,2.62042,3816.2,3815.9,0.08433006]
[1717538213235,2.62042,3816.2,3815.7,4.49094666]
[1717538213432,2.62042,3816.2,3815.8,0.0843864]
[1717538213651,2.62042,3816.2,3815.7,4.49094666]
[1717538213853,2.62042,3816.2,3815.8,0.0843864]
[1717538214221,2.62042,3816.2,3815.7,4.49094666]
[1717538214424,2.62042,3816.2,3815.8,0.0843864]
[1717538214625,2.62042,3816.2,3815.7,4.49094666]
[1717538214854,2.62042,3816.2,3815.8,0.0843864]
[1717538215042,2.62042,3816.2,3815.7,4.49094666]
[1717538215242,2.62042,3816.2,3815.8,0.0843864]
[1717538215490,2.62042,3816.2,3815.7,4.49094666]
[1717538215656,2.62042,3816.2,3815.9,0.08433006]
[1717538215860,2.62042,3816.2,3815.7,4.49094666]
[1717538216048,2.62042,3816.2,3816.0,0.08429739]
[1717538216246,2.62042,3816.2,3815.7,4.49094666]
[1717538216446,2.62042,3816.2,3815.8,0.08441007]
[1717538216740,2.62042,3816.2,3815.7,5.02239146]
[1717538217145,2.62042,3816.2,3815.8,0.08441007]
[1717538217473,2.62042,3816.2,3815.7,5.02239146]
[1717538217672,2.62042,3816.2,3815.9,0.08435373]
[1717538217992,2.62042,3816.2,3815.8,0.08441007]
[1717538218275,2.62042,3816.2,3816.0,0.08429739]
[1717538218429,2.62042,3816.2,3815.9,0.08435373]
[1717538218635,2.62042,3816.2,3815.7,4.49094666]
[1717538218850,2.62042,3816.2,3815.8,0.08441007]
[1717538219050,2.62042,3816.2,3815.7,4.49094666]
[1717538219266,2.62042,3816.2,3815.8,0.08441007]
[1717538219694,2.62042,3816.2,3815.7,4.49094666]
[1717538219840,2.62042,3816.2,3815.9,0.08435373]
[1717538220040,2.62042,3816.2,3815.7,4.49094666]
[1717538220267,2.62042,3816.2,3815.8,0.08441007]
[1717538220668,2.62042,3816.2,3815.7,4.49094666]
[1717538220983,2.62042,3816.2,3815.9,0.08435373]
[1717538221150,2.62042,3816.2,3815.8,0.08441007]
[1717538221482,2.62042,3816.2,3815.9,0.08435373]
[1717538221857,2.62042,3816.2,3815.7,4.49094666]
[1717538222060,2.62042,3816.2,3815.8,0.08441007]
[1717538222383,2.62042,3816.2,3815.7,5.02239146]
[1717538222578,2.62042,3816.2,3815.9,0.08415232]
[1717538222884,2.2526,3816.1,3816.0,0.08409598]
[1717538223342,2.2526,3816.1,3815.7,4.49094666]
[1717538223542,2.2526,3816.1,3816.0,0.08409598]
[1717538223744,2.2526,3816.1,3815.7,4.49094666]
[1717538223940,2.2526,3816.1,3816.0,0.08409598]
[1717538224156,2.2526,3816.1,3815.7,4.49094666]
[1717538224361,2.2526,3816.1,3816.0,0.08409598]
[1717538224859,2.2526,3816.1,3815.7,4.49094666]
[1717538225059,2.2526,3816.1,3815.8,0.08420867]
[1717538225272,2.2526,3816.1,3815.7,4.49094666]
[1717538225578,2.2526,3816.1,3815.8,0.08420867]
[1717538226093,2.2526,3816.1,3815.9,0.08415232]
[1717538226447,2.2526,3816.1,3815.7,1.87026666]
[1717538226648,2.2526,3816.1,3815.8,0.08420867]
[1717538226951,2.2526,3816.1,3815.7,1.87026666]
[1717538227290,2.2526,3816.1,3815.8,0.08420867]
[1717538227898,2.2526,3816.1,3815.9,0.08415232]
[1717538228385,2.2526,3816.1,3815.7,1.87026666]
[1717538228571,2.2526,3816.1,3816.0,0.08409598]
[1717538228777,2.2526,3816.1,3815.7,1.32126577]
[1717538228778,2.2526,3816.1,3815.7,1.87026666]
[1717538228979,2.2526,3816.1,3816.0,0.08409598]
[1717538229492,2.2526,3816.1,3815.7,1.87026666]
[1717538229787,2.2526,3816.1,3816.0,0.08409598]
[1717538229996,2.2526,3816.1,3815.7,1.87026666]
[1717538230151,2.2526,3816.1,3816.0,0.08409598]
[1717538230347,2.2526,3816.1,3815.7,1.87026666]
[1717538230696,2.2526,3816.1,3815.7,1.32126577]
[1717538230892,2.2526,3816.1,3815.8,0.0842113]
[1717538231250,2.2526,3816.1,3815.7,1.32126577]
[1717538231445,2.2526,3816.1,3815.8,0.08420542]
[1717538231652,2.2526,3816.1,3815.7,1.87026666]
[1717538231951,2.2526,3816.1,3815.8,0.08420542]
[1717538232394,2.2526,3816.1,3815.7,1.87026666]
[1717538232700,2.2526,3816.1,3815.8,0.0842113]
[1717538233153,2.2526,3816.1,3815.7,1.32126577]
[1717538233349,2.2526,3816.1,3815.9,0.08415496]
[1717538233555,2.2526,3816.1,3815.8,0.0842113]
[1717538233786,2.2526,3816.1,3816.0,0.08409862]
[1717538233963,2.2526,3816.1,3815.9,0.08415496]
[1717538234320,2.2526,3816.1,3816.0,0.08409862]
[1717538234650,2.2526,3816.1,3815.7,1.87026666]
[1717538234996,2.2526,3816.1,3815.8,0.0842113]
[1717538235498,2.2526,3816.1,3815.9,0.08415496]
[1717538236097,2.2526,3816.1,3816.0,0.08409862]
[1717538236447,2.2526,3816.1,3815.7,1.87026666]
[1717538236672,2.2526,3816.1,3815.8,0.0842113]
[1717538236876,2.2526,3816.1,3815.7,1.87026666]
[1717538237079,2.2526,3816.1,3815.8,0.0842113]
[1717538237292,2.2526,3816.1,3815.7,1.87026666]
[1717538237459,2.2526,3816.1,3815.9,0.08415496]
[1717538237668,2.2526,3816.1,3815.7,1.87026666]
[1717538237871,2.62054,3816.1,3815.8,0.0842113]
[1717538238047,2.62054,3816.1,3815.7,1.32126577]
[1717538238252,2.62054,3816.1,3815.8,0.0842113]
[1717538238452,2.62054,3816.1,3815.7,1.32126577]
[1717538238673,2.62054,3816.1,3815.8,0.0842113]
[1717538238894,2.62054,3816.1,3815.7,1.32126577]
[1717538239095,2.62054,3816.1,3815.9,0.08415496]
[1717538239296,2.62054,3816.1,3815.8,0.0842113]
[1717538239597,2.62054,3816.1,3816.0,0.08409862]
[1717538239756,2.62054,3816.1,3815.9,0.08415496]
[1717538239962,2.62054,3816.1,3815.7,1.32126577]
[1717538239963,2.62054,3816.1,3816.0,0.08409862]
[1717538240307,2.62054,3816.1,3815.7,1.32126577]
[1717538240488,2.62054,3816.1,3816.0,0.08409862]
[1717538240685,2.62054,3816.1,3815.7,1.32126577]
[1717538240900,2.62054,3816.1,3815.8,0.0842113]
[1717538241499,2.62054,3816.1,3815.9,0.08415496]
[1717538241657,2.4553,3816.0,3815.9,0.08415496]
[1717538241855,2.4553,3816.0,3815.6,0.54900089]
[1717538242091,2.4553,3816.0,3815.7,0.08426765]
[1717538251106,2.62054,3816.1,3815.7,0.08426765]
[1717538263990,2.62054,3816.1,3815.7,1.40553342]
[1717538264190,2.62054,3816.1,3815.7,2.09396685]
[1717538281469,5.01344,3816.1,3815.7,0.08426765]
[1717538281884,2.62054,3816.1,3815.5,0.54900089]
[1717538282162,2.62054,3816.1,3815.6,1.32126577]
[1717538282533,2.62054,3816.1,3815.7,0.08159458]
[1717538291490,2.62065,3815.9,3815.7,0.08159458]
[1717538291695,2.3619,3815.8,3815.7,0.08159458]
[1717538291996,2.3619,3815.8,3815.7,0.08159722]
[1717538292286,2.62045,3816.2,3815.7,0.782]
[1717538292483,0.56633981,3816.1,3815.7,2.18486299]
[1717538292795,2.62045,3816.2,3815.8,0.4509963]
[1717538293168,2.62045,3816.2,3815.9,0.08148453]
[1717538298988,2.62045,3816.2,3816.0,0.08141242]
[1717538299481,2.62045,3816.2,3815.7,1.32126577]
[1717538299683,2.62045,3816.2,3816.1,0.08135608]
[1717538299890,2.62045,3816.2,3815.7,1.32126577]
[1717538300084,2.62045,3816.2,3816.1,0.08135608]
[1717538300276,2.62045,3816.2,3815.7,1.32126577]
[1717538300796,2.62045,3816.2,3815.8,0.0815251]
[1717538301184,2.62045,3816.2,3815.7,1.32126577]
[1717538301499,2.62045,3816.2,3815.9,0.08146876]
[1717538301989,2.62045,3816.2,3816.0,0.08141242]
[1717538302354,2.62045,3816.2,3815.7,1.32126577]
[1717538302698,2.62045,3816.2,3815.8,0.0815251]
[1717538303063,2.62045,3816.2,3815.7,2.00289544]
[1717538303270,2.62045,3816.2,3815.9,0.08146876]
[1717538303500,2.62045,3816.2,3815.8,0.0815251]
[1717538303655,2.62045,3816.2,3816.0,0.08141242]
[1717538303856,2.62045,3816.2,3815.9,0.08146876]
[1717538304197,2.62045,3816.2,3816.0,0.08141242]
[1717538304602,2.62045,3816.2,3815.7,1.32126577]
[1717538304755,2.62045,3816.2,3816.1,0.08137448]
[1717538304951,2.62045,3816.2,3815.7,1.32126577]
[1717538305158,2.62045,3816.2,3815.8,0.0815435]
[1717538305354,2.62045,3816.2,3815.7,1.32126577]
[1717538305742,2.62045,3816.2,3815.8,0.0815435]
[1717538306057,2.62045,3816.2,3815.7,1.32126577]
[1717538306258,2.62045,3816.2,3815.9,0.08148716]
[1717538306604,2.62045,3816.2,3816.0,0.08143082]
[1717538306972,2.62045,3816.2,3815.7,1.32126577]
[1717538307505,2.62045,3816.2,3815.8,0.0815435]
[1717538307872,2.62045,3816.2,3815.7,1.32126577]
[1717538308074,2.62045,3816.2,3815.9,0.08148716]
[1717538308290,2.62045,3816.2,3815.8,0.0815435]
[1717538308506,2.62045,3816.2,3816.0,0.08143082]
[1717538308687,2.62045,3816.2,3815.9,0.08148716]
[1717538308893,2.62045,3816.2,3816.1,0.08137448]
[1717538309068,3.77112854,3816.2,3816.0,0.08143082]
[1717538309270,2.62056,3816.0,3815.7,1.32126577]
[1717538311304,2.62071,3815.8,3815.1,0.54900089]
[1717538311501,2.62071,3815.8,3815.2,1.32126577]
[1717538311708,2.62071,3815.8,3815.2,2.08221844]
[1717538314575,2.62071,3815.8,3815.3,0.08182526]
[1717538314875,2.62071,3815.8,3815.4,1.32126577]
[1717538315217,2.62071,3815.8,3815.5,0.08187294]
[1717538322627,2.62081,3815.6,3815.5,0.08187294]
[1717538322994,2.62081,3815.6,3814.7,2.62137]
[1717538323201,2.62081,3815.6,3814.8,1.40353326]
[1717538323728,2.62095,3815.4,3814.8,2.18553326]
[1717538325843,2.62095,3815.4,3814.8,1.40353326]
[1717538326332,2.62109,3815.3,3814.8,1.40353326]
[1717538332501,2.62109,3815.3,3814.8,1.32126577]
[1717538332904,2.62109,3815.3,3814.9,0.08234787]
[1717538333136,2.62109,3815.3,3814.8,1.32126577]
[1717538333637,0.782,3815.5,3814.9,0.08234787]
[1717538333839,0.60947,3815.4,3814.9,0.08234787]
[1717538334227,0.60947,3815.4,3814.8,1.32126577]
[1717538334412,0.60947,3815.4,3815.0,0.0822915]
[1717538334617,0.60947,3815.4,3814.9,0.08234787]
[1717538334618,2.62116,3815.2,3814.9,0.08234787]
[1717538334918,2.62116,3815.2,3815.0,0.0822915]
[1717538335228,2.62116,3815.2,3814.8,1.32126577]
[1717538335436,2.62116,3815.2,3815.1,0.08223513]
[1717538335764,3.022423,3815.2,3815.1,0.08223513]
[1717538335947,3.022423,3815.2,3814.8,1.32126577]
[1717538336150,2.62116,3815.2,3814.9,0.08234787]
[1717538336527,2.62116,3815.2,3815.0,0.08229413]
[1717538336718,2.62116,3815.2,3814.8,1.32126577]
[1717538337128,2.62116,3815.2,3814.9,0.0823505]
[1717538337328,2.62116,3815.2,3814.8,1.32126577]
[1717538337532,2.62116,3815.2,3814.9,0.0823505]
[1717538337831,2.62116,3815.2,3814.8,1.32126577]
[1717538338035,2.62116,3815.2,3815.0,0.08229413]
[1717538338217,2.62116,3815.2,3814.9,0.0823505]
[1717538338423,3.022423,3815.2,3815.1,0.08223776]
[1717538338619,6.230023,3815.2,3815.0,0.07954371]
[1717538338929,6.230023,3815.2,3813.6,4.09800179]
[1717538338930,6.230023,3815.2,3815.1,0.07948734]
[1717538339130,11.851183,3815.2,3815.1,0.07948734]
[1717538339456,11.851183,3815.2,3814.1,2.3204]
[1717538339457,2.6215,3814.7,3814.1,2.3204]
[1717538340159,2.6215,3814.7,3813.9,0.782]
[1717538340361,2.6215,3814.7,3813.4,0.54900089]
[1717538340362,5.0087,3814.4,3814.0,0.0774733]
[1717538340568,5.0087,3814.4,3813.4,3.17126089]
[1717538340569,5.0087,3814.4,3813.4,2.62226]
[1717538340754,5.0087,3814.4,3813.5,1.87914186]
[1717538340924,5.0087,3814.4,3813.5,2.1810211]
[1717538343051,5.0087,3814.4,3813.5,1.3990211]
[1717538343306,5.0087,3814.4,3813.5,2.1810211]
[1717538345225,5.0087,3814.4,3813.6,2.62218]
[1717538345531,5.0087,3814.4,3813.7,1.39382105]
[1717538356683,5.0087,3814.4,3813.7,0.07255528]
[1717538359036,3.40379,3814.2,3813.7,0.07255528]
[1717538359281,2.2623,3814.1,3813.7,0.07255528]
[1717538359469,0.782,3814.0,3813.7,0.07255528]
[1717538360002,0.782,3814.0,3813.3,2.62233]
[1717538360306,0.782,3814.0,3813.4,1.39417613]
[1717538362670,2.2623,3814.1,3813.4,1.39417613]
[1717538363092,2.62192,3814.0,3813.4,1.39417613]
[1717538363598,3.40392,3814.0,3813.4,1.39417613]
[1717538365254,2.2979,3813.9,3813.4,1.39417613]
[1717538367297,2.4884,3813.9,3813.4,0.07291036]
[1717538367673,2.4884,3813.9,3813.3,2.62233]
[1717538367858,2.4884,3813.9,3813.5,0.07285395]
[1717538368060,2.4884,3813.9,3813.4,0.07291036]
[1717538368293,2.4884,3813.9,3813.6,0.07279754]
[1717538368471,2.4884,3813.9,3813.5,0.07285395]
[1717538368762,2.4884,3813.9,3813.6,0.07279754]
[1717538368962,2.4884,3813.9,3813.3,3.94359577]
[1717538369165,2.4884,3813.9,3813.4,0.07291036]
[1717538369362,2.4884,3813.9,3813.3,3.94359577]
[1717538369573,2.4884,3813.9,3813.4,0.07291036]
[1717538369790,2.4884,3813.9,3813.3,3.94359577]
[1717538369996,2.4884,3813.9,3813.4,0.07291036]
[1717538370299,2.4884,3813.9,3813.3,3.94359577]
[1717538370474,2.4884,3813.9,3813.5,0.07291428]
[1717538370671,2.4884,3813.9,3813.4,0.07297069]
[1717538370984,2.4884,3813.9,3813.5,0.07291428]
[1717538371184,2.4884,3813.9,3813.3,3.94359577]
[1717538371390,2.4884,3813.9,3813.4,0.07297069]
[1717538371593,2.4884,3813.9,3813.3,3.94359577]
[1717538371903,2.4884,3813.9,3813.4,0.07297069]
[1717538372397,2.4884,3813.9,3813.5,0.07241761]
[1717538372716,2.4884,3813.9,3813.3,3.94359577]
[1717538372864,2.4884,3813.9,3813.6,0.0723612]
[1717538373063,2.4884,3813.9,3813.3,2.62233]
[1717538373064,2.62205,3813.8,3813.3,2.62233]
[1717538373384,4.95895,3813.8,3813.3,2.62233]
[1717538373598,4.95895,3813.8,3813.4,0.07247403]
[1717538373811,4.95895,3813.8,3813.1,2.62253]
[1717538373974,4.95895,3813.8,3813.2,0.07258687]
[1717538374173,5.533045,3813.8,3813.2,0.07258687]
[1717538375679,2.6222,3813.6,3813.2,0.07258687]
[1717538376079,2.6222,3813.6,3813.1,2.62253]
[1717538376264,2.6222,3813.6,3813.3,0.07253045]
[1717538376465,2.6222,3813.6,3813.2,0.07258687]
[1717538376664,2.6222,3813.6,3813.4,0.07247403]
[1717538376876,3.2534295,3813.6,3813.3,0.07253045]
[1717538377206,3.2534295,3813.6,3813.4,0.07247403]
[1717538377390,3.2534295,3813.6,3812.8,2.62268]
[1717538377592,3.2534295,3813.6,3813.5,3.0]
[1717538377763,3.2534295,3813.6,3813.5,3.07241761]
[1717538381534,5.5615295,3813.6,3813.5,3.07241761]
[1717538384676,6.3435295,3813.6,3813.5,3.07241761]
[1717538385788,5.5615295,3813.6,3813.5,3.07241761]
[1717538389383,6.3435295,3813.6,3813.5,3.07241761]
[1717538389723,2.62204,3813.9,3813.5,3.07241761]
[1717538390028,3.4032,3815.1,3814.3,2.3851]
[1717538390198,2.6212,3815.1,3814.4,1.39347504]
[1717538390520,3.4032,3815.1,3814.4,0.07220927]
[1717538390720,2.6212,3815.1,3814.4,0.07220927]
[1717538391022,6.100073,3817.0,3814.5,1.32126577]
[1717538391222,1.16073866,3817.3,3814.5,1.32126577]
[1717538391223,3.40275,3815.7,3814.7,2.62139]
[1717538391434,0.56646232,3815.6,3814.8,1.39294248]
[1717538392335,3.40275,3815.7,3814.8,1.39294248]
[1717538396286,2.62075,3815.7,3814.8,1.39294248]
[1717538396646,3.40275,3815.7,3814.8,1.39294248]
[1717538396800,3.40275,3815.7,3814.8,2.10967573]
[1717538398390,3.0,3816.0,3814.8,2.10967573]
[1717538398391,3.40294,3815.5,3814.8,2.10967573]
[1717538400407,2.62094,3815.5,3814.8,2.10967573]
[1717538401750,2.62094,3815.5,3814.8,1.39294248]
[1717538403437,3.0,3816.0,3814.8,1.39294248]
[1717538403438,2.62105,3815.3,3814.8,1.39294248]
[1717538403633,2.62105,3815.3,3814.8,2.17494248]
[1717538403797,2.62105,3815.3,3814.8,1.39294248]
[1717538407423,2.62083,3815.6,3814.8,1.39294248]
[1717538407656,2.62083,3815.6,3814.9,0.71673325]
[1717538407952,2.62083,3815.6,3814.9,2.03799902]
[1717538408519,2.62083,3815.6,3815.0,1.32126577]
[1717538408746,2.62083,3815.6,3814.9,2.03799902]
[1717538409356,3.40283,3815.6,3814.9,2.03799902]
[1717538409917,3.40283,3815.6,3814.8,0.07167671]
[1717538410124,2.62101,3815.4,3814.8,0.07167671]
[1717538410623,3.40301,3815.4,3814.8,0.07167671]
[1717538411321,2.62114,3815.2,3814.8,0.07167671]
[1717538412259,0.782,3815.0,3814.8,0.07167671]
[1717538412552,3.40314,3815.2,3814.8,0.07167671]
[1717538412756,3.743454,3815.2,3814.8,0.07167671]
[1717538413240,2.62126,3815.0,3814.8,0.07167671]
[1717538413608,3.40326,3815.0,3814.8,0.07167671]
[1717538414728,2.62126,3815.0,3814.8,0.07167671]
[1717538415332,0.782,3814.9,3814.8,0.07167671]
[1717538415517,2.62126,3815.0,3814.8,0.07167671]
[1717538415718,0.3743574,3814.9,3814.8,0.07167671]
[1717538417327,2.8210574,3814.9,3814.8,0.07167671]
[1717538417819,2.8210574,3814.9,3814.0,2.62189]
[1717538417820,2.62138,3814.8,3814.0,2.62189]
[1717538418029,2.62138,3814.8,3814.1,1.32126577]
[1717538418212,3.40338,3814.8,3814.1,1.38592497]
[1717538418461,2.62138,3814.8,3814.1,1.38592497]
[1717538422855,3.40338,3814.8,3814.1,1.38592497]
[1717538423053,2.62138,3814.8,3814.1,1.38592497]
[1717538437967,2.62138,3814.8,3814.1,2.16792497]
[1717538439279,2.62138,3814.8,3814.1,1.38592497]
[1717538442477,0.56651347,3814.7,3814.1,1.38592497]
[1717538443505,2.62151,3814.6,3814.1,1.38592497]
[1717538444601,2.62151,3814.6,3814.1,0.0646592]
[1717538448898,2.62151,3814.6,3814.1,0.8466592]
[1717538449868,2.62151,3814.6,3814.1,0.0646592]
[1717538452572,2.2675,3814.7,3814.1,1.38592497]
[1717538453710,0.56648966,3814.8,3814.2,2.62177]
[1717538453908,0.56648966,3814.8,3814.2,4.98697]
[1717538454100,2.62135,3814.9,3814.3,0.06247007]
[1717538455067,0.56649097,3814.8,3814.3,0.06247007]
[1717538457873,0.56648673,3814.8,3814.3,0.06247007]
[1717538458610,2.62135,3814.9,3814.3,1.38373584]
[1717538459502,2.62135,3814.9,3814.4,2.62164]
[1717538459821,0.56648535,3814.8,3814.5,0.06236779]
[1717538459981,2.62135,3814.9,3814.5,0.06236779]
[1717538460175,0.56648525,3814.8,3814.5,0.06236779]
[1717538462192,2.62135,3814.9,3814.3,1.32126577]
[1717538462380,0.56649358,3814.8,3814.6,0.06224058]
[1717538462679,0.56649358,3814.8,3814.7,0.0621842]
[1717538463091,0.56649358,3814.8,3814.3,1.32126577]
[1717538463317,0.56649358,3814.8,3814.7,0.0621842]
[1717538463523,0.56649358,3815.1,3814.5,2.62157]
[1717538463693,0.56649358,3815.1,3814.7,0.0621842]
[1717538464022,2.62113,3815.2,3814.8,0.06212782]
[1717538464316,0.499113,3815.1,3814.8,0.06212782]
[1717538464514,0.499113,3815.1,3814.6,0.782]
[1717538464982,0.499113,3815.1,3814.7,0.0621842]
[1717538468410,0.499113,3815.1,3814.5,2.62157]
[1717538468716,0.499113,3815.1,3814.8,0.06212782]
[1717538469035,0.499113,3815.1,3814.5,2.62157]
[1717538469241,2.62113,3815.2,3814.9,0.06207145]
[1717538469532,2.62113,3815.2,3814.5,2.62157]
[1717538469746,2.62113,3815.2,3815.0,0.06201508]
[1717538470041,2.62113,3815.2,3814.6,0.782]
[1717538470042,2.62113,3815.2,3815.1,0.06195872]
[1717538470382,2.62113,3815.2,3814.6,0.782]
[1717538470588,2.62113,3815.2,3814.7,0.0621842]
[1717538471635,2.62113,3815.2,3814.5,2.62157]
[1717538471931,2.62113,3815.2,3814.8,0.06212782]
[1717538472229,3.198443,3815.2,3814.9,0.06207145]
[1717538472688,3.198443,3815.2,3814.5,2.62157]
[1717538472884,2.62113,3815.2,3815.0,0.06201508]
[1717538473193,2.62113,3815.2,3814.5,2.62157]
[1717538473716,2.62113,3815.2,3814.6,0.06224058]
[1717538475808,2.62125,3815.0,3814.6,0.06224058]
[1717538476020,3.198575,3815.0,3814.6,0.06224058]
[1717538476211,3.198575,3815.0,3813.7,0.54900089]
[1717538476212,2.62152,3814.6,3813.7,3.03110089]